Cogmind - Beta 11 X7 @@@ ROGUE MODE // 2021.08.26 @ 02:50:24 Player: Runia Result: Destroyed by G-67 Veteran with Plasma Rifle Performance ------------- Evolutions (6) 3000 Regions Visited (22) 4400 Robots Destroyed (266) 1330 Value Destroyed (12198) 12198 Prototype IDs (29) 580 Alien Tech Used (0) 0 Bonus (5720) 5720 TOTAL SCORE: 27228 Bonus ------- High Alert Combat Kills 797 Follower Combat Kills 1183 Entered Garrisons 800 Used RIF Installer 2000 Network Hubs Disabled 800 Met Data Miner 300 Friendly Fire -160 Cogmind --------- Core Integrity 0/1150 Matter 300/300 Energy 78/100 System Corruption 10% Temperature Cool (12) Movement Core (50) Location -4/Factory Parts ------- > --- POWER (2) -------- (None) > --- PROPULSION (6) --- (None) > --- UTILITY (8) ------ Advanced Cooling System Enhanced Optical Array Advanced Salvage Targeting Computer Advanced Targeting Computer Advanced Targeting Computer > --- WEAPON (3) ------- (None) > --- INVENTORY (5) ---- Experimental Transmission Jammer Combat Drone Bay (2/2) Mini Smartbomb Launcher Improved Remote Datajack Peak State ------------ > --- POWER ------------ Reinforced Deuterium Engine Reinforced Deuterium Engine > --- PROPULSION ------- Improved Medium Treads Improved Medium Treads Improved Heavy Treads Centrium Heavy Treads > --- UTILITY ---------- High-capacity Storage Unit Advanced Visual Processing Unit Advanced Salvage Targeting Computer Advanced Targeting Computer Advanced Targeting Computer Advanced Armor Integrity Analyzer Experimental Transmission Jammer Relay Coupler [Sentry] > --- WEAPON ----------- Improved Heavy Machine Gun Improved Heavy Machine Gun Improved Heavy Machine Gun > --- INVENTORY -------- Micro Fission Core Advanced Cooling System Matter Compressor Experimental Sensor Array Improved Utility Shielding Improved Medium Armor Plating Experimental Thermal Shield Improved Remote Shield Relay Coupler [NC] Relay Coupler [Grunt] Relay Coupler [Sentry] Combat Drone Bay Heavy Neutron Cannon Gauss Rifle Coil Gun Mini Smartbomb Launcher Mini Smartbomb Launcher Improved Remote Datajack Improved Plasma Cutter [Rating: 115] Favorites ----------- Power Light Angular Momentum Engine Engine Light Angular Momentum Engine Power Core Micro Nuclear Core Reactor Light Antimatter Reactor Propulsion Light Treads Treads Light Treads Leg Armored Leg Wheel Armored Wheel Utility Advanced Targeting Computer Device Improved Sensor Array Storage High-capacity Storage Unit Processor Advanced Targeting Computer Hackware Makeshift System Shield Protection Medium Armor Plating Weapon Enhanced Autogun Energy Gun Particle Gun Energy Cannon Heavy Plasma Cannon Ballistic Gun Enhanced Autogun Ballistic Cannon Gauss Cannon Launcher Heavy Missile Launcher Special Weapon Plasma Cutter Slashing Weapon Axe Special Melee Weapon Datajack Build | -11 -10 -10 -9 -8 -8 -8 -8 -7 -7 -7 -7 -6 -6 -6 -6 -6 -6 -6 -6 -5 -5 -4 ------- Run | Scr Mat Min Mat Mat Gar Mat Gar Fac Low Low Dat Pro Fac Gar Fac Ext Cet Arc Hub Fac Gar Fac Slots Evolved 12 | . . . 2 2 . . . 2 . . . . 2 . . . . . . 2 . 2 Power 1 | . . . . . . . . . . . . . . . . . . . . . . 1 Propulsion 4 | . . . 1 . . . . 1 . . . . 1 . . . . . . 1 . . Utility 6 | . . . 1 1 . . . 1 . . . . 1 . . . . . . 1 . 1 Weapon 1 | . . . . 1 . . . . . . . . . . . . . . . . . . Parts Attached 307 | . 8 9 29 16 6 5 3 17 3 20 1 14 1 33 18 23 6 2 31 29 12 21 Power 19 | . 1 . 2 3 . . 1 2 . 1 . 1 . 3 1 1 . . . 1 1 1 Engine 13 | . 1 . 2 3 . . 1 . . 1 . . . 2 . 1 . . . . 1 1 Core 5 | . . . . . . . . 2 . . . 1 . 1 . . . . . 1 . . Reactor 1 | . . . . . . . . . . . . . . . 1 . . . . . . . Propulsion 52 | . 3 2 9 1 1 2 1 3 . 3 . 2 1 9 2 5 2 . 2 1 2 1 Treads 32 | . 2 2 9 1 1 2 1 3 . 1 . 2 . . 2 . 2 . . 1 2 1 Leg 13 | . 1 . . . . . . . . 2 . . 1 2 . 5 . . 2 . . . Wheel 7 | . . . . . . . . . . . . . . 7 . . . . . . . . Hover . | . . . . . . . . . . . . . . . . . . . . . . . Flight . | . . . . . . . . . . . . . . . . . . . . . . . Utility 95 | . 2 . 5 5 3 2 1 5 1 4 . 4 . 4 10 4 1 . 11 16 7 10 Device 42 | . . . 2 1 . . . 2 1 2 . 3 . 1 6 2 . . 8 8 3 3 Storage 5 | . 1 . . 2 . 1 . . . . . . . . . 1 . . . . . . Processor 12 | . 1 . . 1 1 . . 1 . . . . . . 1 . . . . 3 2 2 Hackware 7 | . . . . . 1 . . . . . . . . . 2 1 . . 1 1 . 1 Protection 29 | . . . 3 1 1 1 1 2 . 2 . 1 . 3 1 . 1 . 2 4 2 4 Artifact . | . . . . . . . . . . . . . . . . . . . . . . . Weapon 141 | . 2 7 13 7 2 1 . 7 2 12 1 7 . 17 5 13 3 2 18 11 2 9 Energy Gun 10 | . 1 1 7 . . . . . . . . . . . . . 1 . . . . . Energy Cannon 4 | . . . . . . . . . . 1 . . . . . 1 . . 1 1 . . Ballistic Gun 69 | . 1 3 3 4 1 1 . 4 2 5 . 5 . 7 3 4 1 2 9 8 1 5 Ballistic Cannon 5 | . . . . . . . . . . 1 . . . 1 . 2 1 . . . . . Launcher 27 | . . 3 3 3 1 . . 3 . 4 1 2 . 5 . 1 . . . . . 1 Special Weapon 14 | . . . . . . . . . . 1 . . . 4 . 2 . . 2 2 . 3 Impact Weapon . | . . . . . . . . . . . . . . . . . . . . . . . Slashing Weapon 8 | . . . . . . . . . . . . . . . 1 . . . 6 . 1 . Piercing Weapon . | . . . . . . . . . . . . . . . . . . . . . . . Special Melee Weapon 4 | . . . . . . . . . . . . . . . 1 3 . . . . . . Unidentified Prototypes 10 | . . . 1 2 . . . 1 . . . 1 . . . . 4 . 1 . . . Corrupted Parts 1 | . . . . . . . . . . . . . . . . . . . . 1 . . System Corruption 2 | . . . . . . . . . . . . . . . . . . . . 2 . . Parts Lost 59 | . . 2 6 2 . 1 1 3 . 5 . 5 . 5 . 3 . . 2 6 3 15 Power 7 | . . . . . . . 1 1 . . . 1 . . . . . . . 1 1 2 Propulsion 19 | . . 2 3 . . . . 1 . 3 . 2 . 2 . . . . . 1 . 5 Utility 13 | . . . . 2 . . . . . 1 . . . 2 . . . . . 3 2 3 Weapon 20 | . . . 3 . . 1 . 1 . 1 . 2 . 1 . 3 . . 2 1 . 5 Highest Loss Streak 12 | . . 1 3 1 . 1 1 2 . 4 . 2 . 2 . 1 . . 1 4 2 12 Average Slot Usage (%) 93 | . 99 99 95 98 100 100 100 99 100 91 100 96 87 95 99 99 90 86 85 81 83 85 Engine 6 | . 14 14 10 9 9 9 9 4 . 5 7 . . . 2 . 6 6 6 4 2 9 Core 1 | . . . . . . . . 2 7 1 . 6 6 5 . . . . . . 2 . Treads 18 | . 7 27 28 27 27 27 27 30 30 19 15 18 20 8 10 4 8 13 13 10 16 19 Leg 4 | . 20 . . . . . . . . 4 15 8 7 12 2 21 14 6 6 5 2 . Wheel 1 | . . . . . . . . . . . . . . 9 20 7 . . . . . . Device 5 | . . . 10 10 . . . 3 7 4 7 6 6 4 9 2 7 6 8 5 5 1 Storage 7 | . 14 14 11 9 9 9 9 7 7 7 7 7 6 6 6 6 6 6 6 5 5 5 Processor 18 | . 13 14 5 6 18 18 18 22 23 23 23 23 20 20 20 20 20 20 20 18 26 26 Hackware 1 | . . . . . . . . . . . . . . . 3 9 . . . 4 . 3 Protection 3 | . . . 5 8 9 9 9 3 . . . . . 4 . . 4 6 4 3 1 4 Energy Gun 2 | . 14 14 12 . . . . . . . . . . . . . . . . . . . Ballistic Gun 17 | . 14 13 9 26 27 27 27 22 23 17 15 20 20 11 14 10 11 19 18 16 16 14 Ballistic Cannon 1 | . . . . . . . . . . 4 7 1 . 5 2 5 7 . . . . . Naked Turns . | . . . . . . . . . . . . . . . . . . . . . . . Heaviest Build 91 | 13 27 31 43 48 45 64 66 66 61 72 71 89 59 86 73 77 78 78 75 71 69 91 Greatest Support 220 | 20 40 40 63 63 63 65 65 90 90 90 50 84 84 84 36 96 160 160 160 160 220 220 Greatest Overweight (x) 24 | . 1 . 1 . . . 1 . . 1 1 2 . 5 2 20 . 24 . . . . Average Overweight (x) . | . . . . . . . . . . . 1 . . 1 1 . . 4 . . . . Largest Inventory Capacity 20 | 8 15 15 15 20 15 20 20 20 20 20 20 20 20 20 20 20 20 20 20 20 20 20 Average Capacity 18 | 8 9 15 15 15 15 15 20 20 20 20 20 20 20 20 20 20 20 20 20 20 20 19 Most Carried 20 | 5 9 10 15 15 15 16 20 20 20 20 19 20 20 20 20 20 20 20 20 20 20 20 Average Carried 17 | 4 7 8 12 14 14 14 18 19 19 19 19 18 20 19 19 19 19 20 19 18 16 19 Final Capacity 20 | 8 15 15 15 15 15 20 20 20 20 20 20 20 20 20 20 20 20 20 20 20 20 5 Final Carried 20 | 4 8 10 15 15 15 16 20 19 20 19 19 20 20 20 20 20 20 20 18 14 20 5 Class Distribution -------------------- 27% | Scavenger-Gunner 25% | Bothacker-Gunner 17% | Mutant 14% | Gunner 10% | Scavenger-Mutant 3% | Bothacker-Mutant Dominant Class ---------------- Mutant | -10/Materials Mutant | -10/Mines Mutant | -9/Materials Gunner | -8/Materials Gunner | -8/Garrison Gunner | -8/Materials Gunner | -8/Garrison Bothacker-Gunner | -7/Factory Bothacker-Gunner | -7/Lower Caves Bothacker-Gunner | -7/Lower Caves Bothacker-Gunner | -7/Data Miner Scavenger-Gunner | -6/Proximity Caves Scavenger-Gunner | -6/Factory Scavenger-Gunner | -6/Garrison Bothacker-Gunner | -6/Factory Scavenger-Mutant | -6/Extension Scavenger-Mutant | -6/Cetus Scavenger-Gunner | -6/Archives Scavenger-Gunner | -6/Hub_04(d) Gunner | -5/Factory Scavenger-Gunner | -5/Garrison Scavenger-Gunner | -4/Factory Resources | -11 -10 -10 -9 -8 -8 -8 -8 -7 -7 -7 -7 -6 -6 -6 -6 -6 -6 -6 -6 -5 -5 -4 ----------- Run | Scr Mat Min Mat Mat Gar Mat Gar Fac Low Low Dat Pro Fac Gar Fac Ext Cet Arc Hub Fac Gar Fac Matter Collected 9746 | 200 145 172 318 598 461 113 367 253 146 558 . 593 . 822 303 709 175 96 1050 1166 629 872 Remotely . | . . . . . . . . . . . . . . . . . . . . . . . Salvage Created 12917 | . 435 202 1130 1031 656 328 514 416 . 780 . 451 . 990 314 329 90 117 1596 1490 934 1114 Parts 667 | . 25 11 66 51 33 16 28 24 . 34 . 24 . 38 9 28 3 10 88 61 44 74 Haulers Intercepted 9 | . 1 . 2 3 . . . . . . . . . . . . . . 1 2 . . Recyclers Shooed 7 | . . . 1 . . . . . . . . . . . 2 . . . 1 2 . 1 Parts Field Recycled . | . . . . . . . . . . . . . . . . . . . . . . . Retrieved Matter . | . . . . . . . . . . . . . . . . . . . . . . . Parts Self-Destructed 51 | . . . . . . . . . . 30 . 21 . . . . . . . . . . Prevented . | . . . . . . . . . . . . . . . . . . . . . . . Kills | -11 -10 -10 -9 -8 -8 -8 -8 -7 -7 -7 -7 -6 -6 -6 -6 -6 -6 -6 -6 -5 -5 -4 ------- Run | Scr Mat Min Mat Mat Gar Mat Gar Fac Low Low Dat Pro Fac Gar Fac Ext Cet Arc Hub Fac Gar Fac Combat Hostiles Destroyed 221 | . 9 7 20 18 15 7 13 8 . 17 . 10 . 19 3 4 2 1 21 19 15 13 Melee 1 | . . . . . 1 . . . . . . . . . . . . . . . . . Guns 172 | . 9 2 18 13 14 7 13 7 . 5 . 3 . 5 3 2 2 1 21 19 15 13 Cannons 10 | . . . . . . . . . . 3 . . . 5 . 2 . . . . . . AOE 38 | . . 5 2 5 . . . 1 . 9 . 7 . 9 . . . . . . . . Classes Destroyed 20 | . 2 4 6 . . 1 1 1 . 2 . 2 . . . . . . 1 . . . Worker 7 | . . . 1 1 . . . 1 . . . . . . . . . . 1 1 . 2 Builder 8 | . . . 1 . . . . . . . . . . . . 1 . . 4 . . 2 Tunneler 3 | . . 1 . 1 . . . . . . . . . . . . . . . 1 . . Hauler 9 | . 1 . 2 3 . . . . . . . . . . . . . . 1 2 . . Recycler 7 | . . 1 2 . . . . . . . . . . . 1 . . . . 2 . 1 Operator 4 | . . . 1 . . . . . . . . . . . 1 . . 1 1 . . . Watcher 9 | . . . 3 2 . . . . . . . . . . . 1 . . 3 . . . Swarmer 31 | . . 3 4 4 3 . 4 . . 3 . 4 . . . . 1 . 3 . . 2 Grunt 113 | . 9 2 8 12 8 5 7 4 . 7 . 4 . 12 2 1 1 . 8 7 12 4 Brawler 6 | . . . 1 . 1 . . . . 2 . . . 2 . . . . . . . . Duelist 5 | . . . . . . . . . . 2 . . . 2 . . . . 1 . . . Protector 2 | . . . . . . . . . . 1 . . . . . . . . . . . 1 Sentry 30 | . . . 7 2 3 1 1 2 . 2 . . . 1 . 1 . 1 4 3 . 2 Specialist 3 | . . . . . . . 1 . . . . . . . . . . . . . . 2 Hunter 9 | . . . . . . 1 . 1 . . . . . 2 . . . . 1 2 1 1 Programmer 13 | . . . . . . . . 1 . . . 1 . . 1 . . . 2 6 1 1 Heavy 3 | . . . . . . . . . . . . . . . . . . . 2 1 . . Behemoth 2 | . . . . . . . . . . . . 1 . . . . . . . . 1 . Packrat 1 | . . . . . . . . . . 1 . . . . . . . . . . . . Samaritan 3 | . . . . . . . . . . . . 3 . . . . . . . . . . Assembled 2 | . . 2 . . . . . . . . . . . . . . . . . . . . Guerrilla 2 | . . . . . . . . . . . . . . . . 2 . . . . . . Best Kill Streak 13 | . 2 3 5 13 4 5 4 5 . 7 . 4 . 4 3 2 1 1 6 7 5 6 Combat Bots Only 8 | . 2 3 4 8 4 5 4 4 . 7 . 4 . 4 2 2 1 1 5 3 5 4 Max Kills in Single Turn 4 | . 1 2 2 4 2 2 2 2 . 3 . 2 . 2 1 1 1 1 2 2 1 2 Gunslinging 1 | . . . . 1 1 1 . 1 . . . . . . . . . . . . . . Exploded 4 | . . 2 1 4 . . . 1 . 3 . 2 . 2 . . . . . . . . Melee 1 | . . . . . 1 . . . . . . . . . . . . . . . . . Uniques/NPCs Destroyed . | . . . . . . . . . . . . . . . . . . . . . . . Combat | -11 -10 -10 -9 -8 -8 -8 -8 -7 -7 -7 -7 -6 -6 -6 -6 -6 -6 -6 -6 -5 -5 -4 -------- Run | Scr Mat Min Mat Mat Gar Mat Gar Fac Low Low Dat Pro Fac Gar Fac Ext Cet Arc Hub Fac Gar Fac Damage Taken 15245 | . 572 360 1128 337 716 126 446 355 . 940 . 531 . 1152 96 232 135 20 1280 1997 899 3923 Core 2270 | . 127 83 131 27 42 15 37 . . 47 . 58 . 114 . 11 23 . 66 231 104 1154 Absorbed by Shields 86 | . . . . . . . . . . . . . . . . 78 8 . . . . . Reduced by Siege Mode 181 | . . . . . . . . . . . . . . . . . . . . . 59 122 Core Remaining (%) 69 | 100 . 16 67 . . . 78 . . . . 85 . . . . . . 74 . 66 . Volleys Fired 788 | . 65 26 84 46 42 10 32 22 . 33 . 36 . 92 16 33 10 9 58 75 49 50 Largest 3 | . 2 2 2 3 3 3 3 3 . 3 . 3 . 3 3 3 3 3 3 3 3 3 Hottest 143 | . 60 85 121 75 75 75 73 73 . 114 . 114 . 109 109 90 143 101 101 90 45 80 Shots Fired 1858 | . 128 45 158 132 124 30 96 59 . 68 . 87 . 153 48 38 15 23 160 218 140 136 Gun 1663 | . 128 38 153 129 123 30 96 56 . 48 . 67 . 67 45 9 13 23 154 215 140 129 Cannon 68 | . . . . . . . . . . 7 . 14 . 26 3 10 2 . 5 1 . . Launcher 48 | . . 7 5 3 1 . . 3 . 7 . 6 . 10 . 4 . . . . . 2 Special 79 | . . . . . . . . . . 6 . . . 50 . 15 . . 1 2 . 5 Kinetic 1528 | . 65 19 47 129 123 30 96 56 . 54 . 81 . 93 48 11 15 23 154 215 140 129 Thermal 274 | . 63 19 106 . . . . . . 7 . . . 50 . 23 . . 5 1 . . Explosive 45 | . . 7 5 1 . . . 3 . 7 . 6 . 10 . 4 . . . . . 2 Electromagnetic 3 | . . . . 2 1 . . . . . . . . . . . . . . . . . Robot Hit Streak 29 | . 11 7 15 11 12 14 15 10 . 17 . 17 . 27 12 12 5 8 18 29 17 29 Robot Miss Streak 7 | . 4 2 5 4 3 1 3 7 . 2 . 3 . 3 3 1 2 2 3 3 3 2 Penetration Max 2 | . . . . . . . . . . . . . . 1 . 1 1 . 2 . . 1 Secondary Targets 35 | . 1 1 4 6 4 3 2 1 . 1 . . . 1 . . . 1 3 2 3 2 Max Gunslinging Chain 2 | . 1 1 1 2 1 1 1 1 . 1 . . . 1 . . . 1 1 1 1 1 Shots Hit Robots 1337 | . 91 29 106 82 82 26 61 32 . 52 . 66 . 122 37 23 10 18 113 169 105 113 Core Hits 612 | . 26 20 50 45 26 15 22 20 . 47 . 31 . 61 11 16 3 5 62 58 42 52 Critical Kills 38 | . 1 . . 1 2 1 1 1 . 3 . 2 . 3 3 2 1 2 9 5 . 1 Critical Parts Destroyed 69 | . 1 . . 1 . . 3 3 . 6 . 5 . 3 6 4 3 3 17 10 4 . Critical Strikes 130 | . 2 1 6 2 2 1 4 4 . 11 . 11 . 13 9 6 5 5 27 16 4 1 Burn 7 | . . 1 6 . . . . . . . . . . . . . . . . . . . Destroy 114 | . 2 . . 2 2 1 4 4 . 10 . 10 . 7 9 6 4 5 27 16 4 1 Blast 8 | . . . . . . . . . . 1 . 1 . 5 . . 1 . . . . . Sever 1 | . . . . . . . . . . . . . . 1 . . . . . . . . Melee Attacks 28 | . . . . . . . . . . . . . . . 12 2 . . 12 . 2 . Impact . | . . . . . . . . . . . . . . . . . . . . . . . Slashing 24 | . . . . . . . . . . . . . . . 10 . . . 12 . 2 . Piercing . | . . . . . . . . . . . . . . . . . . . . . . . Sneak Attacks 2 | . . . . . . . . . . . . . . . 1 . . . 1 . . . Combat Hostiles . | . . . . . . . . . . . . . . . . . . . . . . . Follow-up Attacks . | . . . . . . . . . . . . . . . . . . . . . . . Damage Inflicted 28358 | . 864 550 1619 1903 1462 398 1059 723 . 1677 . 1532 . 3476 748 363 125 281 2787 3725 2228 2838 Guns 20772 | . 864 284 1453 1519 1396 398 1059 485 . 332 . 442 . 540 556 90 97 281 2676 3725 2228 2347 Cannons 1174 | . . . . . . . . . . 107 . 347 . 565 24 103 28 . . . . . Explosions 5328 | . . 266 166 384 36 . . 238 . 1172 . 743 . 1834 . 6 . . . . . 483 Melee 279 | . . . . . . . . . . . . . . . 168 . . . 111 . . . Ramming 52 | . . . . . 30 . . . . . . . . . . 14 . . . . . 8 Kinetic 20210 | . 416 104 397 1519 1396 398 1059 485 . 439 . 789 . 1105 580 141 125 281 2676 3725 2228 2347 Thermal 2572 | . 448 180 1056 83 . . . . . 66 . . . 537 . 202 . . . . . . Explosive 5035 | . . 266 166 127 . . . 238 . 1172 . 743 . 1834 . 6 . . . . . 483 Electromagnetic 210 | . . . . 174 36 . . . . . . . . . . . . . . . . . Impact . | . . . . . . . . . . . . . . . . . . . . . . . Slashing 279 | . . . . . . . . . . . . . . . 168 . . . 111 . . . Piercing . | . . . . . . . . . . . . . . . . . . . . . . . Highest Corruption 10 | . . . . . . . . 1 1 1 1 1 . . . . . . 2 9 10 10 Average Corruption 2 | . . . . . . . . 1 1 1 1 1 . . . . . . 1 4 9 1 Corruption Purged . | . . . . . . . . . . . . . . . . . . . . . . . Effects 74 | . . . . . . . . . . 10 1 7 . . . . . . 5 19 27 5 Message Errors 24 | . . . . . . . . . . 6 1 3 . . . . . . 3 2 6 3 Matter Fused 7 | . . . . . . . . . . . . . . . . . . . . 2 5 . Heat Flow Errors 6 | . . . . . . . . . . . . . . . . . . . 1 5 . . Energy Discharges 14 | . . . . . . . . . . 1 . 2 . . . . . . . 4 7 . Data Loss (minor) 14 | . . . . . . . . . . 2 . 1 . . . . . . 1 4 5 1 Data Loss (major) 2 | . . . . . . . . . . . . . . . . . . . . 1 1 . Misdirections 1 | . . . . . . . . . . . . . . . . . . . . . . 1 Weapon Failures 6 | . . . . . . . . . . 1 . 1 . . . . . . . 1 3 . Overload Shots 6 | . . . . . . . . . . . . . . . . 6 . . . . . . Effects 2 | . . . . . . . . . . . . . . . . 2 . . . . . . Meltdown 2 | . . . . . . . . . . . . . . . . 2 . . . . . . Overflow Damage 218 | . . 4 . 8 . . . . . 16 . . . 5 91 3 . . 91 . . . Projectiles 3 | . . . . . . . . . . . . . . . . 3 . . . . . . Explosions 33 | . . 4 . 8 . . . . . 16 . . . 5 . . . . . . . . Melee 182 | . . . . . . . . . . . . . . . 91 . . . 91 . . . Knockbacks 10 | . . . . . . . . . . . . 1 . 9 . . . . . . . . Impact . | . . . . . . . . . . . . . . . . . . . . . . . Kinetic 9 | . . . . . . . . . . . . 1 . 8 . . . . . . . . Secondary 1 | . . . . . . . . . . . . . . 1 . . . . . . . . Self-Inflicted Damage 308 | . . 26 26 27 21 . . . . 126 . 15 . 49 . . . . . . . 18 Shots 13 | . . 2 2 2 1 . . . . 2 . 1 . 2 . . . . . . . 1 Rammed 5 | . . . . . 4 . . . . . . . . . . . . . . . . 1 Targets Rammed 9 | . . . . . 5 . . . . . . . . . . 3 . . . . . 1 Kicked 3 | . . . . . . . . . . . . . . . . 3 . . . . . . Crushed 1 | . . . . . 1 . . . . . . . . . . . . . . . . . Highest Temperature 281 | . 168 161 266 255 276 125 183 281 . 189 . 224 . 127 36 34 . 30 137 204 8 115 Average Temperature 60 | . 61 68 106 74 98 52 71 53 . 64 . 116 . 39 9 7 . 11 30 41 3 28 Received Heat Transfer 4049 | . 357 141 435 207 387 36 180 117 . 219 . 63 . 487 18 52 36 9 369 279 279 378 Siege Activations 4 | . . . . . . . . . . . . . . . . . . . . . 1 3 Total Turns 100 | . . . . . . . . . . . . . . . . . . . . . 18 82 Longest Duration 35 | . . . . . . . . . . . . . . . . . . . . . 18 35 Robots Corrupted . | . . . . . . . . . . . . . . . . . . . . . . . Combat Hostiles . | . . . . . . . . . . . . . . . . . . . . . . . Parts Fried . | . . . . . . . . . . . . . . . . . . . . . . . Impact Corruptions . | . . . . . . . . . . . . . . . . . . . . . . . Robots Melted . | . . . . . . . . . . . . . . . . . . . . . . . Combat Hostiles . | . . . . . . . . . . . . . . . . . . . . . . . Parts Melted 14 | . 1 . 12 . . . . . . 1 . . . . . . . . . . . . Heat Transferred 7345 | . 1025 471 3182 100 . . . . . 222 . . . 1813 . 532 . . . . . . Parts Sabotaged . | . . . . . . . . . . . . . . . . . . . . . . . Parts Stolen . | . . . . . . . . . . . . . . . . . . . . . . . Parts Stripped . | . . . . . . . . . . . . . . . . . . . . . . . Power Chain Reactions 1 | . . . . 1 . . . . . . . . . . . . . . . . . . Missiles Intercepted . | . . . . . . . . . . . . . . . . . . . . . . . Alert | -11 -10 -10 -9 -8 -8 -8 -8 -7 -7 -7 -7 -6 -6 -6 -6 -6 -6 -6 -6 -5 -5 -4 ------- Run | Scr Mat Min Mat Mat Gar Mat Gar Fac Low Low Dat Pro Fac Gar Fac Ext Cet Arc Hub Fac Gar Fac Peak Influence 842 | . 195 104 219 387 738 560 839 761 . . . . 14 588 565 506 657 366 418 435 604 842 Initial 440 | . . 49 1 19 253 359 364 440 . . . . . 9 308 276 220 262 72 137 149 317 Average 274 | . 69 40 91 242 553 482 658 375 . . . . 11 251 257 374 436 297 223 223 385 357 Maximum Alert Level 3 | . . . 1 1 3 2 3 3 . . . . . 2 2 2 2 1 2 2 2 3 Low Security (%) 41 | 100 100 100 98 33 . . . 3 . . . . 100 61 20 . . 32 43 38 11 28 Level 1 38 | . . . 1 66 16 29 10 60 . . . . . 15 78 62 61 67 54 58 49 53 Level 2 15 | . . . . . 68 70 49 26 . . . . . 23 1 37 38 . 2 3 39 4 Level 3 4 | . . . . . 14 . 39 9 . . . . . . . . . . . . . 12 Level 4 . | . . . . . . . . . . . . . . . . . . . . . . . Level 5 . | . . . . . . . . . . . . . . . . . . . . . . . High Security . | . . . . . . . . . . . . . . . . . . . . . . . Max Security . | . . . . . . . . . . . . . . . . . . . . . . . Squads Dispatched 35 | . 3 . 2 4 . 2 . 4 . 1 . . . . 4 . . . 6 6 . 3 Investigation 4 | . . . . 2 . . . . . . . . . . 1 . . . 1 . . . Extermination 7 | . . . . . . . . . . . . . . . 1 . . . 2 3 . 1 Reinforcement 20 | . 3 . 2 1 . 2 . 3 . . . . . . 2 . . . 2 3 . 2 Assault 3 | . . . . . . . . 1 . 1 . . . . . . . . 1 . . . Garrison 1 | . . . . 1 . . . . . . . . . . . . . . . . . . Intercept . | . . . . . . . . . . . . . . . . . . . . . . . Construction Impeded 2 | . . . 1 . . . . . . . . . . . . . . . 1 . . . Haulers Reinforced 2 | . . . . . . . . . . . . . . . . . . . . 1 . 1 Active Scanning Responses . | . . . . . . . . . . . . . . . . . . . . . . . Cargo Convoy Interrupts 2 | . . . . . . . . 1 . . . . . . . . . . . . . 1 Stealth | -11 -10 -10 -9 -8 -8 -8 -8 -7 -7 -7 -7 -6 -6 -6 -6 -6 -6 -6 -6 -5 -5 -4 --------- Run | Scr Mat Min Mat Mat Gar Mat Gar Fac Low Low Dat Pro Fac Gar Fac Ext Cet Arc Hub Fac Gar Fac Distress Signals 12 | . 2 . 3 . . . . . . . . . . . . . 1 . 2 2 . 2 Communications Jammed 23 | . . . . . . . . . . . . . . . . . . . 7 16 . . Distress Signals 10 | . . . . . . . . . . . . . . . . . . . 1 9 . . Times Spotted 363 | . 24 8 35 25 14 7 12 11 . 17 . 10 . 23 10 20 11 7 36 32 17 44 Peak Tracking Total 17 | . 4 3 5 5 8 5 8 4 . 7 . 4 . 7 2 5 5 2 7 6 5 17 Tactical Retreats 25 | . . . 1 . 1 . 2 1 . . . . . 5 2 4 . . 4 1 1 3 Traps | -11 -10 -10 -9 -8 -8 -8 -8 -7 -7 -7 -7 -6 -6 -6 -6 -6 -6 -6 -6 -5 -5 -4 ------- Run | Scr Mat Min Mat Mat Gar Mat Gar Fac Low Low Dat Pro Fac Gar Fac Ext Cet Arc Hub Fac Gar Fac Traps Triggered 12 | . . . . 1 2 . 2 . . . . . . 2 . 2 . . . . 2 1 Indirectly 1 | . . . . . 1 . . . . . . . . . . . . . . . . . Trap Hack Attempts . | . . . . . . . . . . . . . . . . . . . . . . . Triggered . | . . . . . . . . . . . . . . . . . . . . . . . Disarmed . | . . . . . . . . . . . . . . . . . . . . . . . Reprogrammed . | . . . . . . . . . . . . . . . . . . . . . . . Reused . | . . . . . . . . . . . . . . . . . . . . . . . Traps Extracted . | . . . . . . . . . . . . . . . . . . . . . . . Installed . | . . . . . . . . . . . . . . . . . . . . . . . Triggered 1 | . . . . . . . . 1 . . . . . . . . . . . . . . Machines | -11 -10 -10 -9 -8 -8 -8 -8 -7 -7 -7 -7 -6 -6 -6 -6 -6 -6 -6 -6 -5 -5 -4 ---------- Run | Scr Mat Min Mat Mat Gar Mat Gar Fac Low Low Dat Pro Fac Gar Fac Ext Cet Arc Hub Fac Gar Fac Machines Disabled 27 | . . 1 . 4 1 . 2 . . 1 . . . 1 2 . 2 2 6 3 2 . Max in Single Turn 1 | . . 1 . 1 1 . 1 . . 1 . . . 1 1 . . 1 1 1 1 . Garrison Access 2 | . . . . . . . . . . . . . . . . . . . 1 . . 1 Garrison Relay 6 | . . . . . 1 . 2 . . . . . . 1 . . . . . . 2 . Network Hub 4 | . . . . . . . . . . . . . . . . . . . 4 . . . Machines Sabotaged 1 | . . . . . . . . . . . . . . . . . . . 1 . . . Garrisons Compromised 1 | . . . . . . . . 1 . . . . . . . . . . . . . . Overloaded Fab Kills . | . . . . . . . . . . . . . . . . . . . . . . . Fab Network Shutdowns 1 | . . . . . . . . . . . . . . . 1 . . . . . . . Hacking | -11 -10 -10 -9 -8 -8 -8 -8 -7 -7 -7 -7 -6 -6 -6 -6 -6 -6 -6 -6 -5 -5 -4 --------- Run | Scr Mat Min Mat Mat Gar Mat Gar Fac Low Low Dat Pro Fac Gar Fac Ext Cet Arc Hub Fac Gar Fac Machines Accessed 55 | . 2 2 8 4 . 1 . 2 1 . 4 . 3 . 5 6 . . 10 5 . 2 Terminals 38 | . 2 1 8 3 . . . 2 . . . . 2 . 3 6 . . 8 3 . . Fabricators 2 | . . . . . . . . . . . . . . . 1 . . . . . . 1 Repair Stations 2 | . . . . . . . . . . . . . . . 1 . . . . 1 . . Recycling Units . | . . . . . . . . . . . . . . . . . . . . . . . Scanalyzers . | . . . . . . . . . . . . . . . . . . . . . . . Garrison Access 7 | . . . . 1 . 1 . . . . . . 1 . . . . . 2 1 . 1 Total Hacks 178 | . 8 4 27 12 . 2 . 5 1 . 27 . 3 . 15 19 . . 19 19 . 17 Successful 103 | . 4 2 13 5 . 2 . 1 1 . 27 . 2 . 8 7 . . 9 10 . 12 Failed 75 | . 4 2 14 7 . . . 4 . . . . 1 . 7 12 . . 10 9 . 5 Catastrophic 6 | . . . 1 . . . . 1 . . . . . . . 2 . . 2 . . . Database Lockouts . | . . . . . . . . . . . . . . . . . . . . . . . Manual 67 | . 7 3 14 7 . . . 1 . . . . 1 . 7 9 1 . 6 8 . 3 Terminals 114 | . 8 3 27 10 . . . 5 . . . . 2 . 7 19 . . 17 16 . . Fabricators 19 | . . . . . . . . . . . . . . . 4 . . . . . . 15 Repair Stations 6 | . . . . . . . . . . . . . . . 4 . . . . 2 . . Recycling Units . | . . . . . . . . . . . . . . . . . . . . . . . Scanalyzers . | . . . . . . . . . . . . . . . . . . . . . . . Garrison Access 10 | . . . . 2 . 2 . . . . . . 1 . . . . . 2 1 . 2 Terminal Hacks 65 | . 2 2 11 2 . . . 1 1 . 27 . . . 1 6 . . 6 6 . . Record 11 | . . . . . . . . . . . 11 . . . . . . . . . . . Part Schematic 8 | . . . . . . . . . . . 7 . . . . 1 . . . . . . Robot Schematic 6 | . . . . . . . . . . . 6 . . . . . . . . . . . Robot Analysis 3 | . . . 2 . . . . . . . . . . . . 1 . . . . . . Prototype ID Bank 7 | . . . 1 1 . . . . . . 3 . . . . 1 . . 1 . . . Open Door 3 | . . 1 . . . . . . 1 . . . . . 1 . . . . . . . Branch Access Points 2 | . . . 1 . . . . . . . . . . . . . . . . 1 . . Terminal Index 4 | . 1 . 1 . . . . . . . . . . . . 1 . . . 1 . . Garrison Index 1 | . . . . . . . . . . . . . . . . . . . 1 . . . Unreport Threat 5 | . . 1 1 . . . . 1 . . . . . . . 2 . . . . . . Locate Traps 7 | . 1 . 2 1 . . . . . . . . . . . . . . 2 1 . . Hauler Manifests 2 | . . . . . . . . . . . . . . . . . . . 1 1 . . Registered Components 1 | . . . . . . . . . . . . . . . . . . . . 1 . . Zone Layout 5 | . . . 3 . . . . . . . . . . . . . . . 1 1 . . Fabricator Hacks 9 | . . . . . . . . . . . . . . . 2 . . . . . . 7 Load Schematic 4 | . . . . . . . . . . . . . . . 1 . . . . . . 3 Build 5 | . . . . . . . . . . . . . . . 1 . . . . . . 4 Repair Station Hacks 4 | . . . . . . . . . . . . . . . 3 . . . . 1 . . Scan Component 3 | . . . . . . . . . . . . . . . 2 . . . . 1 . . Repair 1 | . . . . . . . . . . . . . . . 1 . . . . . . . Recycling Unit Hacks . | . . . . . . . . . . . . . . . . . . . . . . . Scanalyzer . | . . . . . . . . . . . . . . . . . . . . . . . Garrison Access Hacks 9 | . . . . 1 . 2 . . . . . . 1 . . . . . 2 1 . 2 Unlock Access 6 | . . . . 1 . 1 . . . . . . 1 . . . . . 2 1 . . Seal Access 1 | . . . . . . . . . . . . . . . . . . . . . . 1 Coupler Status 2 | . . . . . . 1 . . . . . . . . . . . . . . . 1 Unauthorized Hacks 16 | . 2 . 2 2 . . . . . . . . 1 . 2 1 . . 1 2 . 3 Terminals 12 | . 2 . 2 2 . . . . . . . . 1 . 1 1 . . 1 2 . . Assimilate 1 | . . . . . . . . . . . . . . . . . . . . 1 . . Botnet 8 | . 2 . 2 2 . . . . . . . . 1 . 1 . . . . . . . Operators 2 | . . . . . . . . . . . . . . . . 1 . . . 1 . . Sabotage 1 | . . . . . . . . . . . . . . . . . . . 1 . . . Fabricators 4 | . . . . . . . . . . . . . . . 1 . . . . . . 3 Prioritize 2 | . . . . . . . . . . . . . . . 1 . . . . . . 1 Siphon 1 | . . . . . . . . . . . . . . . . . . . . . . 1 Haulers 1 | . . . . . . . . . . . . . . . . . . . . . . 1 Repair Stations . | . . . . . . . . . . . . . . . . . . . . . . . Recycling Units . | . . . . . . . . . . . . . . . . . . . . . . . Scanalyzers . | . . . . . . . . . . . . . . . . . . . . . . . Garrison Access . | . . . . . . . . . . . . . . . . . . . . . . . Data Cores Recovered 1 | . . . . . . . . . . . . . . . . 1 . . . . . . Used 1 | . . . . . . . . . . . . . . . . 1 . . . . . . Hacking Detections 39 | . 2 1 6 4 . 1 . 2 . . . . 2 . 4 6 1 . 7 3 . . Full Trace Events 2 | . . . . 1 . . . . . . . . . . 1 . . . . . . . Feedback Events . | . . . . . . . . . . . . . . . . . . . . . . . Feedback Blocked . | . . . . . . . . . . . . . . . . . . . . . . . Robot Schematics Acquired 6 | . . . . . . . . . . . 6 . . . . . . . . . . . Robots Built . | . . . . . . . . . . . . . . . . . . . . . . . Matter . | . . . . . . . . . . . . . . . . . . . . . . . Time . | . . . . . . . . . . . . . . . . . . . . . . . Total Robot Build Rating . | . . . . . . . . . . . . . . . . . . . . . . . Part Schematics Acquired 8 | . . . . . . . . . . . 7 . . . . 1 . . . . . . Parts Built 3 | . . . . . . . . . . . . . . . 1 . . . . . . 2 Matter 1196 | . . . . . . . . . . . . . . . 384 . . . . . . 812 Time 485 | . . . . . . . . . . . . . . . 204 . . . . . . 281 Total Part Build Rating 22 | . . . . . . . . . . . . . . . 8 . . . . . . 14 Parts Repaired 1 | . . . . . . . . . . . . . . . 1 . . . . . . . Time 70 | . . . . . . . . . . . . . . . 70 . . . . . . . Parts Recycled . | . . . . . . . . . . . . . . . . . . . . . . . Recycled Matter . | . . . . . . . . . . . . . . . . . . . . . . . Retrieved Matter . | . . . . . . . . . . . . . . . . . . . . . . . Retrieved Components . | . . . . . . . . . . . . . . . . . . . . . . . Parts Scanalyzed . | . . . . . . . . . . . . . . . . . . . . . . . Part Schematics Acquired . | . . . . . . . . . . . . . . . . . . . . . . . Parts Damaged . | . . . . . . . . . . . . . . . . . . . . . . . Bothacking | -11 -10 -10 -9 -8 -8 -8 -8 -7 -7 -7 -7 -6 -6 -6 -6 -6 -6 -6 -6 -5 -5 -4 ------------ Run | Scr Mat Min Mat Mat Gar Mat Gar Fac Low Low Dat Pro Fac Gar Fac Ext Cet Arc Hub Fac Gar Fac Used RIF Installer 4 | . . . . . 1 . 1 . . . . . . 1 . . . . . . 1 . Command Fork 1 | . . . . . . . . . . . . . . 1 . . . . . . . . Program Shield 1 | . . . . . . . 1 . . . . . . . . . . . . . . . Autooverride 1 | . . . . . . . . . . . . . . . . . . . . . 1 . Robots Hacked 10 | . . . . . . . . . . . . . . . 1 2 . . 1 2 . 4 Non-combat 4 | . . . . . . . . . . . . . . . 1 . . . 1 2 . . Combat 6 | . . . . . . . . . . . . . . . . 2 . . . . . 4 Robot Hacks Applied 10 | . . . . . . . . . . . . . . . 1 2 . . 1 2 . 4 purge_threat 2 | . . . . . . . . . . . . . . . . . . . 1 1 . . map_route 2 | . . . . . . . . . . . . . . . 1 . . . . 1 . . disrupt_area 1 | . . . . . . . . . . . . . . . . . . . . . . 1 reboot_system 2 | . . . . . . . . . . . . . . . . . . . . . . 2 overwrite_iff 1 | . . . . . . . . . . . . . . . . 1 . . . . . . formatsys_high 2 | . . . . . . . . . . . . . . . . 1 . . . . . 1 Relay Couplers Released 23 | . . . . . 3 . 7 . . . . . . 3 . . . . 1 . 9 . Machine Destruction 23 | . . . . . 3 . 7 . . . . . . 3 . . . . 1 . 9 . Attached 6 | . . . . . 1 . . . . . . . . . 1 1 . . 1 1 . 1 Robots Rewired 3 | . . . . . . . . . . 1 . . . . . 2 . . . . . . Allies Hacked . | . . . . . . . . . . . . . . . . . . . . . . . Hacks Repelled . | . . . . . . . . . . . . . . . . . . . . . . . Allies | -11 -10 -10 -9 -8 -8 -8 -8 -7 -7 -7 -7 -6 -6 -6 -6 -6 -6 -6 -6 -5 -5 -4 -------- Run | Scr Mat Min Mat Mat Gar Mat Gar Fac Low Low Dat Pro Fac Gar Fac Ext Cet Arc Hub Fac Gar Fac Total Allies 20 | . . . . . . . . . . 1 . 1 . . . 15 1 . . 1 . 1 Largest Group 10 | . . . . . . . . . . 1 . 1 . . . 10 10 10 6 1 . 1 Highest-Rated Group 467 | . . . . . . . . . . 16 . 95 . . . 403 467 467 236 10 . 64 Highest-Rated Ally 156 | . . . . . . . . . . 16 . 95 . . . 156 135 135 95 10 . 64 Total Orders 2 | . . . . . . . . . . . . . . . . . . . . 1 . 1 STAY 2 | . . . . . . . . . . . . . . . . . . . . 1 . 1 Ally Attacks 246 | . . . . . . . . . . 1 . 16 . . . 67 104 33 19 . . 6 Total Damage 5854 | . . . . . . . . . . 13 . 595 . . . 1923 1996 742 316 . . 269 Kills 35 | . . . . . . . . . . . . 1 . . . 17 9 4 1 . . 3 Allies Corrupted . | . . . . . . . . . . . . . . . . . . . . . . . Allies Melted . | . . . . . . . . . . . . . . . . . . . . . . . Intel | -11 -10 -10 -9 -8 -8 -8 -8 -7 -7 -7 -7 -6 -6 -6 -6 -6 -6 -6 -6 -5 -5 -4 ------- Run | Scr Mat Min Mat Mat Gar Mat Gar Fac Low Low Dat Pro Fac Gar Fac Ext Cet Arc Hub Fac Gar Fac Robot Analysis Total 3 | . . . 2 . . . . . . . . . . . . 1 . . . . . . Derelict Logs Recovered 6 | . . 2 . . . . . . . 2 . 2 . . . . . . . . . . Drone Launches . | . . . . . . . . . . . . . . . . . . . . . . . Drone Recoveries . | . . . . . . . . . . . . . . . . . . . . . . . Exploration | -11 -10 -10 -9 -8 -8 -8 -8 -7 -7 -7 -7 -6 -6 -6 -6 -6 -6 -6 -6 -5 -5 -4 ------------- Run | Scr Mat Min Mat Mat Gar Mat Gar Fac Low Low Dat Pro Fac Gar Fac Ext Cet Arc Hub Fac Gar Fac Turns Passed 18068 | 2 684 1081 1607 515 658 271 869 824 377 1430 206 1228 116 738 1012 764 221 603 1898 1349 684 931 Spaces Moved 8804 | 1 350 597 760 225 346 148 437 463 236 605 82 578 71 293 667 440 117 159 959 626 315 329 Core 42 | . . . . . . . . . . . . . . . . 2 . 29 . . . 11 Treads 7101 | . 72 597 760 225 346 148 437 463 236 605 82 578 71 54 . . 79 130 959 626 315 318 Legs 601 | 1 278 . . . . . . . . . . . . . . 284 38 . . . . . Wheels 1060 | . . . . . . . . . . . . . . 239 667 154 . . . . . . Hover . | . . . . . . . . . . . . . . . . . . . . . . . Flight . | . . . . . . . . . . . . . . . . . . . . . . . Fastest Speed 50 | 120 120 160 160 160 160 155 155 156 156 156 252 160 160 105 105 105 120 160 160 160 160 50 Average Speed 162 | 120 128 160 164 160 160 159 175 156 156 215 252 187 160 129 105 118 147 358 160 160 160 156 Slowest Speed 1250 | 120 200 160 260 160 160 160 255 156 156 252 252 360 160 260 120 1050 160 1250 160 160 160 160 Overloaded Moves . | . . . . . . . . . . . . . . . . . . . . . . . Propulsion Burnouts . | . . . . . . . . . . . . . . . . . . . . . . . Robots Hopped . | . . . . . . . . . . . . . . . . . . . . . . . Cave-ins Triggered . | . . . . . . . . . . . . . . . . . . . . . . . Exploration Rate (%) 43 | 2 71 90 70 22 43 14 38 8 46 61 69 72 2 51 11 60 48 84 68 16 48 13 Regions Visited 22 Branch Regions 9 Pre-discovered Areas 3 | . . 1 . . . . . . . 1 1 . . . . . . . . . . . Known Exits Taken 14 | . . . . 1 . 1 . 1 1 1 1 1 1 . 1 1 1 1 1 1 . . Unknown Exits Taken 4 | 1 1 1 1 . . . . . . . . . . . . . . . . . . . Scrap Searched 13 | . . 3 . . . . . . 3 4 . 3 . . . . . . . . . . Spaces Dug 54 | . . . 8 . . . . . . . . . . . 6 27 . . 13 . . . Terrain Destroyed 505 | . . 40 37 6 . . . 41 . 90 . 54 . 95 9 84 1 6 30 . . 12 Melee 14 | . . . . . . . . . . . . . . . 6 . . . 8 . . . Projectile 43 | . . . . . . . . . . 3 . . . 4 3 4 1 6 22 . . . AOE 447 | . . 40 37 6 . . . 41 . 86 . 54 . 91 . 80 . . . . . 12 Terrain Rammed . | . . . . . . . . . . . . . . . . . . . . . . . Walls Destroyed . | . . . . . . . . . . . . . . . . . . . . . . . Machines Disabled . | . . . . . . . . . . . . . . . . . . . . . . . Actions | -11 -10 -10 -9 -8 -8 -8 -8 -7 -7 -7 -7 -6 -6 -6 -6 -6 -6 -6 -6 -5 -5 -4 --------- Run | Scr Mat Min Mat Mat Gar Mat Gar Fac Low Low Dat Pro Fac Gar Fac Ext Cet Arc Hub Fac Gar Fac Total 11211 | 2 470 679 971 328 403 171 501 530 247 669 82 649 72 465 925 621 155 173 1175 847 412 664 Wait 916 | . 31 43 63 27 . . 16 20 . . . 18 . 19 180 32 10 . 91 102 17 247 Move 8785 | . 349 596 759 225 345 148 436 462 235 604 81 577 71 292 666 439 116 158 958 625 314 329 Hop . | . . . . . . . . . . . . . . . . . . . . . . . Pick Up 148 | . 9 4 17 7 2 4 7 6 4 4 . 4 . 8 16 10 3 1 11 9 14 8 Fast Attach 34 | . 1 . 8 2 . . . . . 3 . 2 1 4 2 2 4 1 2 1 . 1 Attach 71 | . 3 2 4 3 1 1 1 6 . 3 . 3 . 5 5 7 2 . 2 9 7 7 Detach 1 | . . . . . . . . . . . . . . . . . . . . 1 . . Swap 202 | . 4 7 17 11 5 4 2 11 3 14 1 9 . 24 11 14 . 1 27 19 5 13 Drop 142 | 2 8 1 19 7 3 4 3 3 5 3 . . . 13 17 9 10 3 14 6 4 8 Fire 788 | . 65 26 84 46 42 10 32 22 . 33 . 36 . 92 16 33 10 9 58 75 49 50 Melee 28 | . . . . . . . . . . . . . . . 12 2 . . 12 . 2 . Ram . | . . . . . . . . . . . . . . . . . . . . . . . Kick 3 | . . . . . . . . . . . . . . . . 3 . . . . . . Crush 6 | . . . . . 5 . . . . . . . . . . . . . . . . 1 Escape Stasis 24 | . . . . . . . 4 . . . . . . 8 . 12 . . . . . . Rewire 63 | . . . . . . . . . . 5 . . . . . 58 . . . . . . Trap . | . . . . . . . . . . . . . . . . . . . . . . . Miscellaneous . | . . . . . . . . . . . . . . . . . . . . . . . Route ------- -11/Scrapyard -10/Materials (discovered 3 exits: *Mat / *Min x2) -10/Mines -9/Materials (discovered 3 exits: *Mat x2 / *Min) -8/Materials -8/Garrison (discovered 2 exits: *Mat x2) -8/Materials -8/Garrison -7/Factory (discovered 3 exits: *Fac / *Sto / *Low) -7/Lower Caves -7/Lower Caves -7/Data Miner -6/Proximity Caves -6/Factory (discovered 3 exits: *Low x2 / Gar) -6/Garrison -6/Factory (discovered 2 exits: Fac / *Ext) -6/Extension (discovered 2 exits: *Fac / *Cet) -6/Cetus -6/Archives (discovered 2 exits: *Fac / *Hub) -6/Hub_04(d) (discovered 3 exits: *Fac x2 / Gar) -5/Factory (discovered 4 exits: *Fac / Upp x2 / Gar) -5/Garrison -4/Factory (discovered 1 exit: [*Arm]) History --------- Turn | Location | Event 3 | -11/Scrapyard | Discovered new exit (range 0) 3 | -11/Scrapyard | Entered Materials 305 | -10/Materials | Build established: Mutant 427 | -10/Materials | Discovered new exit (range 9) 455 | -10/Materials | Discovered new exit (range 16) 585 | -10/Materials | Discovered new exit (range 9) 623 | -10/Materials | Core integrity fell below 50% 687 | -10/Materials | Entered Mines 754 | -10/Mines | Met a Derelict bent on vengeance 838 | -10/Mines | Learned location of Zion (-6) 869 | -10/Mines | Learned Materials trap positions 1030 | -10/Mines | Assembled infested the area 1470 | -10/Mines | Core integrity fell below 20% 1736 | -10/Mines | Met a Derelict who couldn't figure out how to use a Trap Extractor 1757 | -10/Mines | Discovered new exit (range 8) 1768 | -10/Mines | Entered Materials 1768 | -9/Materials | Evolved 2 slots: Propulsion x1, Utility x1 1769 | -9/Materials | Loaded intel: 19 trap records 2272 | -9/Materials | Lost 3 parts (2n1w) 2403 | -9/Materials | Discovered new exit (range 17) 2898 | -9/Materials | Discovered new exit (range 16) 3130 | -9/Materials | Identified exit to Mines 3292 | -9/Materials | Discovered new exit (range 16) 3375 | -9/Materials | Entered another Materials area 3375 | -8/Materials | Evolved 2 slots: Utility x1, Weapon x1 3818 | -8/Materials | Build established: Gunner 3860 | -8/Materials | Garrison activated, responded to threat 3890 | -8/Materials | Identified exit to Garrison 3890 | -8/Materials | Entered Garrison 3891 | -8/Garrison | Destroyed 8 combat bots 3942 | -8/Garrison | Triggered checkpoint 4149 | -8/Garrison | Discovered new exit (range 14) 4317 | -8/Garrison | Discovered new exit (range 12) 4345 | -8/Garrison | Installed Relay Interface Framework 4382 | -8/Garrison | Triggered checkpoint 4452 | -8/Garrison | Garrison Relay disabled 4548 | -8/Garrison | Entered Materials 4819 | -8/Materials | Identified exit to Garrison 4819 | -8/Materials | Entered Garrison 4827 | -8/Garrison | Expanded RIF knowledge: Program Shield 4888 | -8/Garrison | Triggered checkpoint 4998 | -8/Garrison | Triggered checkpoint 5019 | -8/Garrison | Garrison Relay disabled 5062 | -8/Garrison | Discovered new exit (range 10) 5236 | -8/Garrison | Triggered checkpoint 5269 | -8/Garrison | Garrison Relay disabled 5572 | -8/Garrison | Build established: Bothacker-Gunner 5688 | -8/Garrison | Entered Factory 5688 | -7/Factory | Evolved 2 slots: Propulsion x1, Utility x1 5947 | -7/Factory | Discovered new exit (range 16) 5986 | -7/Factory | Discovered new exit (range 5) 6035 | -7/Factory | Identified exit to Factory 6098 | -7/Factory | Identified exit to Lower Caves 6196 | -7/Factory | Discovered new exit (range 15) 6291 | -7/Factory | Identified exit to Storage 6318 | -7/Factory | Found Prototype Launcher 6319 | -7/Factory | Identified Rocket Array 6409 | -7/Factory | Cargo convoy interrupted 6488 | -7/Factory | First assault squad dispatched 6512 | -7/Factory | Entered Lower Caves 6833 | -7/Lower Caves | Discovered new exit (range 12) 6849 | -7/Lower Caves | Identified exit to Lower Caves 6889 | -7/Lower Caves | Entered another Lower Caves area 6954 | -7/Lower Caves | Learned location of 1 exit from Proximity Caves 7132 | -7/Lower Caves | Attracted the attention of an 0b10 checkpoint 7278 | -7/Lower Caves | Attracted the attention of an 0b10 outpost 7333 | -7/Lower Caves | Destroyed 7 combat bots 7339 | -7/Lower Caves | Lost 4 parts (3n1w) 8304 | -7/Lower Caves | Discovered new exit (range 7) 8317 | -7/Lower Caves | Identified exit to Data Miner 8319 | -7/Lower Caves | Entered Data Miner 8319 | -7/Data Miner | Discovered new exit (range 6) 8367 | -7/Data Miner | Met Data Miner 8418 | -7/Data Miner | Learned location of Section 7 (-2) 8418 | -7/Data Miner | Acquired the access code to Warlord's prototype stash 8458 | -7/Data Miner | Received God Mode back door access code from Data Miner 8521 | -7/Data Miner | Identified exit to Proximity Caves 8525 | -7/Data Miner | Entered Proximity Caves 8571 | -6/Proximity Caves | Escorted by Enhanced Grunt 8649 | -6/Proximity Caves | Spotted B-75 Beast 8695 | -6/Proximity Caves | Destroyed B-75 Beast 9129 | -6/Proximity Caves | Found Prototype Device 9130 | -6/Proximity Caves | Identified Exp. Thermal Shield 9304 | -6/Proximity Caves | Build established: Scavenger-Gunner 9386 | -6/Proximity Caves | Learned location of 1 exit from Proximity Caves 9753 | -6/Proximity Caves | Entered Factory 9753 | -6/Factory | Evolved 2 slots: Propulsion x1, Utility x1 9754 | -6/Factory | Identified exit to Lower Caves 9814 | -6/Factory | Discovered exit to Lower Caves (range 4) 9869 | -6/Factory | Identified exit to Garrison 9869 | -6/Factory | Entered Garrison 9877 | -6/Garrison | Expanded RIF knowledge: Command Fork 9926 | -6/Garrison | Triggered checkpoint 10308 | -6/Garrison | Triggered checkpoint 10405 | -6/Garrison | Triggered checkpoint 10564 | -6/Garrison | Discovered new exit (range 13) 10605 | -6/Garrison | Identified exit to Factory 10607 | -6/Garrison | Entered Factory 10665 | -6/Factory | Incoming investigation squad redirected 10714 | -6/Factory | Repaired Broken Hyp. Gauss Rifle 10999 | -6/Factory | Build established: Bothacker-Gunner 11223 | -6/Factory | Fabricated Exp. Sensor Array (x1) 11264 | -6/Factory | Discovered new exit (range 65) 11606 | -6/Factory | Local fabrication network quarantined 11614 | -6/Factory | Build established: Scavenger-Mutant 11615 | -6/Factory | Discovered new exit (range 6) 11618 | -6/Factory | Identified exit to Extension 11619 | -6/Factory | Entered Extension 11653 | -6/Extension | Rescued A7 11869 | -6/Extension | Disrupted transfer network 12093 | -6/Extension | Rescued a captive Derelict 12139 | -6/Extension | Rescued a captive Derelict 12141 | -6/Extension | Rescued a captive Derelict 12175 | -6/Extension | Rescued a captive Derelict 12186 | -6/Extension | Rescued a captive Derelict 12239 | -6/Extension | Rescued a captive Derelict 12286 | -6/Extension | Rescued a captive Derelict 12307 | -6/Extension | Rescued a captive Derelict 12308 | -6/Extension | Rescued a captive Derelict 12339 | -6/Extension | Discovered new exit (range 10) 12340 | -6/Extension | Discovered new exit (range 6) 12357 | -6/Extension | Identified exit to Factory 12361 | -6/Extension | Identified exit to Cetus 12383 | -6/Extension | Entered Cetus 12383 | -6/Cetus | Accompanied by 10 allies (A7) 12388 | -6/Cetus | Acquired a Cetus Manufacturing Module code from A7 12398 | -6/Cetus | Spotted Cetus Guard 12398 | -6/Cetus | Spotted Cetus Guard 12400 | -6/Cetus | Spotted Cetus Guard 12404 | -6/Cetus | Spotted Cetus Guard 12408 | -6/Cetus | Allies destroyed Cetus Guard 12415 | -6/Cetus | Allies destroyed Cetus Guard 12422 | -6/Cetus | Allies destroyed Cetus Guard 12426 | -6/Cetus | Allies destroyed Cetus Guard 12512 | -6/Cetus | Started Cetus Manufacturing Module 12537 | -6/Cetus | Manufactured an Enhanced Grunt 12544 | -6/Cetus | Cetus Manufacturing Module disabled 12575 | -6/Cetus | Discovered new exit (range 16) 12597 | -6/Cetus | Identified exit to Archives 12604 | -6/Cetus | Entered Archives 12604 | -6/Archives | Accompanied by 10 allies (A7) 12660 | -6/Archives | Discovered new exit (range 15) 12687 | -6/Archives | Discovered exit to Factory (range 16) 12974 | -6/Archives | Build established: Scavenger-Gunner 13195 | -6/Archives | Identified exit to Hub_04(d) 13207 | -6/Archives | Entered Hub_04(d) 13207 | -6/Hub_04(d) | Accompanied by 6 allies 13220 | -6/Hub_04(d) | Discovered exit to Factory (range 16) 13572 | -6/Hub_04(d) | Discovered exit to Factory (range 8) 13868 | -6/Hub_04(d) | Identified exit to Garrison 14201 | -6/Hub_04(d) | Identified exit to Garrison 14882 | -6/Hub_04(d) | Build established: Scavenger-Mutant 14980 | -6/Hub_04(d) | Network Hub disabled 14980 | -6/Hub_04(d) | Network Hub disabled 14980 | -6/Hub_04(d) | Network Hub disabled 14980 | -6/Hub_04(d) | Network Hub disabled 14999 | -6/Hub_04(d) | Incoming investigation squad redirected 15007 | -6/Hub_04(d) | Incoming assault squad redirected 15105 | -6/Hub_04(d) | Entered Factory 15105 | -5/Factory | Evolved 2 slots: Propulsion x1, Utility x1 15502 | -5/Factory | Build established: Gunner 15631 | -5/Factory | Found Mni. Smartbomb Launcher 15636 | -5/Factory | Found Mni. Smartbomb Launcher 16255 | -5/Factory | Identified exit to Upper Caves 16262 | -5/Factory | Discovered new exit (range 14) 16309 | -5/Factory | Lost 4 parts (1n2u1w) 16371 | -5/Factory | Identified exit to Garrison 16454 | -5/Factory | Entered Garrison 16462 | -5/Garrison | Expanded RIF knowledge: Autooverride 16470 | -5/Garrison | Build established: Scavenger-Gunner 16498 | -5/Garrison | Triggered checkpoint 16565 | -5/Garrison | Garrison Relay disabled 16733 | -5/Garrison | Spotted B-75 Beast 16790 | -5/Garrison | Destroyed B-75 Beast 16928 | -5/Garrison | Triggered checkpoint 16974 | -5/Garrison | System corruption reached 10% 17031 | -5/Garrison | Triggered checkpoint 17058 | -5/Garrison | Garrison Relay disabled 17119 | -5/Garrison | Discovered new exit (range 13) 17138 | -5/Garrison | Entered Factory 17138 | -4/Factory | Evolved 2 slots: Power x1, Utility x1 17433 | -4/Factory | Fabricated Exp. Transmission Jammer (x1) 17525 | -4/Factory | Fabricated Combat Drone Bay (x1) 17757 | -4/Factory | Spotted B-86 Titan 17796 | -4/Factory | Discovered new exit (range 16) 17952 | -4/Factory | Cargo convoy interrupted 17980 | -4/Factory | Incoming assault squad redirected 18061 | -4/Factory | Core integrity fell below 50% 18061 | -4/Factory | System corruption reached 10% 18065 | -4/Factory | Core integrity fell below 20% 18069 | -4/Factory | Destroyed by G-67 Veteran with Plasma Rifle Last Messages --------------- R-10 Processor collects Med. Matter Pod. Acquired 10 matter. Acquired Mni. Smartbomb Launcher. Penetrated by Slug. Adv. Armor Integrity Analyzer destroyed. Slug penetrates P-70 Sage. P-70 Sage suffers critical hit (Destroy). Penetrated by Slug. Slug penetrates Machine. U-05 Engineer lays Concrete. Penetrated by Slug. K-01 Serf collects debris. R-10 Processor collects Lgt. Ion Engine. Slug penetrates Y-72 Warden. Slug penetrates Wall. P-70 Sage resets P-70 Sage, system corruption cleaned. Penetrated by Slug. U-05 Engineer suffers critical hit (Destroy). Slug penetrates Machine. Y-72 Warden destroyed. Map ----- +----------------------------------------------------+ | ????????# #??# #??"""""""""?+ ???????? | | ????????# ????# #?? ?# #???????? | | ?????????? ?????## ## """"""""" # #???????? | | ???????????#+######## # # #???????? | | ???????????# + """"""????# #???????? | | ???????????######## # # #???????? | | ??????????????????# #??#+######## #???????? | | ??????????????????# #??# ######?# #???????? | | ??????????????##### #### ## ### #???????? | | ????????+ / #???????? | | ????????####################### ### #???????? | | ??????????????????????????????#####?# #???????? | | ????????????????????????????????????# ##+###?????? | | ??????????????????????##????????????# # !#?????? | | ??????????????????????"""???????????# # #?????? | | ??????????????????????? ""??????????# # #?????? | | ??????????????????? ???? ?????????# #! #?????? | | ????????????????####+#####+#######??#%#*= !#?????? | | ????????????????""" """""#??#!"|! #?????? | | ????????????????[" "[["####!#! #?????? | | ?????????????????? [["##[# # #?????? | | ?????????????#"[????"" """g [["##[#%# #????## | | ?????????????#""" ??## ##" " !% ;########"" | | ?????????????#" "# #" !!! =h%[=[=! | | ??????????? + %!%[ !ss[isw%%%k== | | ??????????? + g<=@!! !|pp=!!%[s !!= | | ??????????? + u *]h=h%% % h !!= | | ?????????????#" "# #" " %=[* h R !== | | ?????????????#"""???## ##" " " # #### | | ?????????????#?????""" """ [["#### # | | ????????????????? [["#??? # "" | | ???????????????[[" "[["#???? # """" | | ??????????????""""" """""#???? # """" | | ???????????????###########+#######?????#"## | | ???????????????????????? ????????????? | | ??????????????????????? ""???????????????## ## | | ??????????????????????????????????????????# #? | | ??????????????????????????????????????????# #? | | ??????????????????????????????????????????# #? | | ??????????????????????????????????????????# #? | | ??????????????????????????????????????????# #? | | ??????????????????????????????????????????# #? | | ??????????????????????????????????????????# #? | | ??????????????????????????????????????????# #? | | ??????????????????????????????????????????# #? | | ??????????????????????????????????????????? #? | | ??????????????????????????????????????????? #? | | ??????????????????????????????????????????? #? | | ??????????????????????????????????????????? ??? | | ?????????????????????????????????????????????????? | +----------------------------------------------------+ Best States ------------- Heat Dissipation 64 Energy Generation 27 Energy Capacity 480 Matter Stores 300 Matter Capacity 300 Sight Range 22 Robot Scan Range 20 Terrain Scan Density 10 Jamming Range 22 Cloak Strength 2 Armor Coverage 450 Resistance: KI 30 Resistance: TH 30 Utility Shielding 66 Evasion (%) 55 Targeting Accuracy 16 Target Analysis 6 Armor Integrity Analysis 40 Recoil Reduction 6 Salvage Targeting 3 Defensive Hacking 11 Relay Coupler Types 24 Relay Coupler Value 1 Item Schematics ----------------- Combat Drone Bay | -7/Data Miner | Free Lgt. Regenerative Plating | -7/Data Miner | Free Exp. Sensor Array | -7/Data Miner | Free Exp. Terrain Scanner | -7/Data Miner | Free Exp. Transmission Jammer | -7/Data Miner | Free Cloaking Device | -7/Data Miner | Free Mni. Smartbomb Launcher | -7/Data Miner | Free Force Field | -6/Extension | Hacked Robot Schematics ------------------ S-27 Virus | -7/Data Miner | Free G-50 Soldier | -7/Data Miner | Free G-67 Veteran | -7/Data Miner | Free H-66 Slayer | -7/Data Miner | Free P-70 Sage | -7/Data Miner | Free I-36 Angel | -7/Data Miner | Free Fabricated ------------ Exp. Sensor Array | x1 | -6/Factory Exp. Transmission Jammer | x1 | -4/Factory Combat Drone Bay | x1 | -4/Factory Alien Tech Used ----------------- None Achievements -------------- 404 Challenges ------------ None Game ------ Seed BackupPlasmaNukerbomber Manual? 0 Play Time 03:11:11 Cumulative 286.8 hours Start 2021.08.25 @ 23:03:37 End 2021.08.26 @ 02:50:24 Sessions 1 Manual Loads 0 Difficulty Rogue Special Mode None Game No. 330 Rogue 330 Adventurer 0 Explorer 0 Win Type - Total 5 Types 5/0/0/0/0/0/0/0/0 Lore% 69 Gallery% 86 Achievement% 65 Wizard Run 0 Options --------- ASCII 0 Keyboard 0 Movement Mouse Keybinds 1 Fullscreen 2 Font 24/Smallcaps Map View 76x50 Tactical HUD 1 Map Filters NONE Filters NONE Steam 1 RUN: 0e2c7674-de0b-4820-9a7c-8b7a317b8ffb